lending/lending_fUSD_20251016
["ID","MTS","AMOUNT","RATE_DAILY","PERIOD"]
[391536790,1760633731742,-2778.58,0.00030716,120]
[391536791,1760633731797,-628.58,0.00030716,120]
[391536792,1760633731852,-2778.58,0.00030716,120]
[391536793,1760633731908,-231.34711365,0.00030716,120]
[391536794,1760633731965,-628.58,0.00030716,120]
[391536795,1760633732024,-2778.58,0.00030716,120]
[391536796,1760633732084,-628.58,0.00030716,120]
[391536797,1760633732142,-4691.74,0.00030716,120]
[391536798,1760633732198,-2778.58,0.00030716,120]
[391536799,1760633732255,-628.58,0.00030716,120]
[391536800,1760633732313,-4691.74,0.00030716,120]
[391536801,1760633732372,-2778.58,0.00030716,120]
[391536802,1760633732426,-628.58,0.00030716,120]
[391536803,1760633732479,-1461.13,0.00030716,120]
[391536804,1760633732534,-4691.74,0.00030716,120]
[391536805,1760633732588,-2778.58,0.00030716,120]
[391536806,1760633732643,-628.58,0.00030716,120]
[391536807,1760633732698,-1461.13,0.00030716,120]
[391536808,1760633732967,-4691.74,0.00030716,120]
[391536809,1760633733043,-2778.58,0.00030716,120]
[391536810,1760633733100,-628.58,0.00030716,120]
[391536811,1760633733154,-1461.13,0.00030716,120]
[391536812,1760633733210,-4691.74,0.00030716,120]
[391536813,1760633733265,-2778.58,0.00030716,120]
[391536814,1760633733319,-628.58,0.00030716,120]
[391536815,1760633733380,-1461.13,0.00030716,120]
[391536816,1760633733436,-4691.74,0.00030716,120]
[391536817,1760633733491,-2778.58,0.00030716,120]
[391536818,1760633733546,-628.58,0.00030716,120]
[391536819,1760633733601,-1461.13,0.00030716,120]
[391536820,1760633733656,-4691.74,0.00030716,120]
[391536821,1760633733710,-2778.58,0.00030716,120]
[391536822,1760633733764,-500.0,0.00030716,120]
[391536823,1760633733819,-628.58,0.00030716,120]
[391536824,1760633733878,-1461.13,0.00030716,120]
[391536825,1760633733932,-4691.74,0.00030716,120]
[391536826,1760633733987,-2778.58,0.00030716,120]
[391536827,1760633734042,-500.0,0.00030716,120]
[391536828,1760633734098,-628.58,0.00030716,120]
[391536829,1760633734153,-1461.13,0.00030716,120]
[391536830,1760633734210,-4691.74,0.00030716,120]
[391536831,1760633734266,-2778.58,0.00030716,120]
[391536832,1760633734332,-1461.13,0.00030716,120]
[391536833,1760633734393,-628.58,0.00030716,120]
[391536834,1760633734451,-4691.74,0.00030716,120]
[391536835,1760633734506,-2778.58,0.00030716,120]
[391536836,1760633734580,-628.58,0.00030716,120]
[391536837,1760633734637,-1461.13,0.00030716,120]
[391536838,1760633734698,-2778.58,0.00030716,120]
[391536839,1760633734758,-4691.74,0.00030716,120]
[391536840,1760633734816,-628.58,0.00030716,120]
[391536841,1760633734879,-1461.13,0.00030716,120]
[391536842,1760633734939,-2778.58,0.00030716,120]
[391536843,1760633735001,-4691.74,0.00030716,120]
[391536844,1760633735060,-628.58,0.00030716,120]
[391536845,1760633735125,-1461.13,0.00030716,120]
[391536846,1760633735183,-2778.58,0.00030716,120]
[391536847,1760633735240,-4691.74,0.00030716,120]
[391536848,1760633735297,-628.58,0.00030716,120]
[391536849,1760633735354,-1461.13,0.00030716,120]
[391536850,1760633735413,-4691.74,0.00030716,120]
[391536851,1760633735471,-2778.58,0.00030716,120]
[391536852,1760633735528,-628.58,0.00030716,120]
[391536853,1760633735587,-1461.13,0.00030716,120]
[391536854,1760633735646,-4691.74,0.00030716,120]
[391536855,1760633735709,-2778.70634016,0.00030716,120]
[391536856,1760633735775,-1654.47,0.00030716,120]
[391536857,1760633735837,-628.58,0.00030716,120]
[391536858,1760633735895,-1461.13,0.00030716,120]
[391536859,1760633735954,-4691.74,0.00030716,120]
[391536860,1760633736014,-1654.47,0.00030716,120]
[391536861,1760633736069,-628.58,0.00030716,120]
[391536862,1760633736131,-1461.13,0.00030716,120]
[391536863,1760633736187,-4691.74,0.00030716,120]
[391536864,1760633736244,-1654.47,0.00030716,120]
[391536865,1760633736300,-628.58,0.00030716,120]
[391536866,1760633736355,-4691.74,0.00030716,120]
[391536867,1760633736411,-1461.13,0.00030716,120]
[391536868,1760633736466,-1654.47,0.00030716,120]
[391536869,1760633736520,-628.58,0.00030716,120]
[391536870,1760633736579,-4691.74,0.00030716,120]
[391536871,1760633736636,-1461.13,0.00030716,120]
[391536872,1760633736694,-1654.47,0.00030716,120]
[391536873,1760633736750,-628.73762325,0.00030716,120]
[391536874,1760633736809,-4691.74,0.00030716,120]
[391536875,1760633736868,-1461.13,0.00030716,120]
[391536876,1760633736926,-1654.47,0.00030716,120]
[391536877,1760633736986,-4691.74,0.00030716,120]
[391536878,1760633737042,-3995.63,0.00030716,120]
[391536879,1760633737098,-1461.13,0.00030716,120]
[391536880,1760633737156,-1654.47,0.00030716,120]
[391536881,1760633737212,-4691.74,0.00030716,120]
[391536882,1760633737268,-1461.13,0.00030716,120]
[391536883,1760633737329,-3995.63,0.00030716,120]
[391536884,1760633737384,-1654.47,0.00030716,120]
[391536885,1760633737439,-4691.74,0.00030716,120]
[391536886,1760633737494,-1461.13,0.00030716,120]
[391536887,1760633737548,-1654.47,0.00030716,120]
[391536888,1760633737604,-3995.63,0.00030716,120]
[391536889,1760633737659,-4691.76095193,0.00030716,120]
[391536890,1760633737713,-1461.13,0.00030716,120]
[391536891,1760633737769,-1654.47,0.00030716,120]
[391536892,1760633737828,-3995.63,0.00030716,120]
[391536893,1760633737884,-1461.13,0.00030716,120]
[391536894,1760633737939,-1654.47,0.00030716,120]
[391536895,1760633737993,-3995.63,0.00030716,120]
[391536896,1760633738050,-1461.2922323,0.00030716,120]
[391536897,1760633738106,-3995.63,0.00030716,120]
[391536898,1760633738164,-1654.47,0.00030716,120]
[391536899,1760633738220,-3995.63,0.00030716,120]
[391536900,1760633738279,-1654.47,0.00030716,120]
[391536901,1760633738337,-500.0,0.00030716,120]
[391536902,1760633738394,-827.19,0.00030716,120]
[391536903,1760633738450,-3995.63,0.00030716,120]
[391536904,1760633738506,-1654.47,0.00030716,120]
[391536905,1760633738563,-500.0,0.00030716,120]
[391536906,1760633738625,-827.19,0.00030716,120]
[391536907,1760633738683,-3995.63,0.00030716,120]
[391536908,1760633738740,-1654.47,0.00030716,120]
[391536909,1760633738797,-500.0,0.00030716,120]
[391536910,1760633738854,-707.29,0.00030716,120]
[391536911,1760633738913,-1654.47,0.00030716,120]
[391536912,1760633739235,-3995.63,0.00030716,120]
[391536913,1760633739291,-827.19,0.00030716,120]
[391536914,1760633739347,-707.29,0.00030716,120]
[391536915,1760633739404,-500.0,0.00030716,120]
[391536916,1760633739459,-1654.47,0.00030716,120]
[391536917,1760633739513,-3799.01008045,0.00030716,120]
[391536918,1760633826392,1163.5674691,0.00027397,120]
[391536922,1760634199568,2026.41,0.0002739,120]
[391536932,1760634447293,737.31,9.783e-05,2]
[391536933,1760634447536,737.31,0.00010298,2]
[391536934,1760634447735,737.31,0.00010813,2]
[391536935,1760634447983,737.31,0.00011328,2]
[391536936,1760634448212,737.31,0.00011843,2]
[391536937,1760634448447,737.31,0.00012358,2]
[391536978,1760634631433,-737.31,0.00012873,2]
[391536979,1760634631444,-737.31,0.00013388,2]
[391536980,1760634631453,-362.91114483,0.00013903,2]
[391536981,1760634631466,-374.39885517,0.00013903,2]
[391536982,1760634631477,-300.0,0.0001416,2]
[391536983,1760634631486,-737.31,0.00014418,2]
[391536984,1760634631496,-737.31,0.00014932,2]
[391536985,1760634631506,-737.31,0.00015447,2]
[391536986,1760634631515,-737.31,0.00015962,2]
[391536987,1760634631527,-1991.59859926,0.00016291,2]
[391536988,1760634631536,-328.0,0.0001634,2]
[391536989,1760634631546,-1200.0,0.0001634,2]
[391536990,1760634631556,-924.16,0.00016341,2]
[391536991,1760634631566,-1290.14,0.00016341,2]
[391536992,1760634631576,-2075.45,0.00016341,2]
[391536993,1760634631585,-2931.82,0.00016341,2]
[391536994,1760634631594,-6345.92,0.00016341,2]
[391536995,1760634631603,-2349.05,0.00016341,2]
[391536996,1760634631612,-3789.25,0.00016341,2]
[391536997,1760634631622,-671.93837369,0.00016391,2]
[391536998,1760634631631,-737.31,0.00016477,2]
[391536999,1760634631640,-737.31,0.00016992,2]
[391537000,1760634631651,-250.0,0.00017,2]
[391537001,1760634631661,-166.43601524,0.00017,2]
[391537002,1760634631671,-737.31,0.00017507,2]
[391537003,1760634631680,-258.50284276,0.0001778,2]
[391537004,1760634631690,-2000.0,0.0001792,2]
[391537005,1760634631700,-250.0,0.0001792,2]
[391537006,1760634631709,-337.60287683,0.00017925,2]
[391537007,1760634631719,-984.0,0.00017948,2]
[391537008,1760634631728,-737.31,0.00018022,2]
[391537009,1760634631739,-302.0,0.000183,2]
[391537010,1760634631748,-313.5,0.00018359,2]
[391537011,1760634631758,-1163.04,0.00018359,2]
[391537013,1760634631767,-737.31,0.00018537,2]
[391537015,1760634631777,-510.60202826,0.00018851,2]
[391537017,1760634631786,-737.31,0.00019052,2]
[391537019,1760634631796,-151.0,0.00019474,2]
[391537021,1760634631805,-151.0,0.00019474,2]
[391537023,1760634631816,-151.0,0.00019474,2]
[391537025,1760634631826,-151.0,0.00019474,2]
[391537027,1760634631835,-151.0,0.00019474,2]
[391537030,1760634631845,-151.0,0.00019474,2]
[391537032,1760634631854,-151.0,0.00019474,2]
[391537035,1760634631864,-151.0,0.00019474,2]
[391537037,1760634631874,-151.0,0.00019474,2]
[391537039,1760634631884,-151.0,0.00019474,2]
[391537041,1760634631894,-151.0,0.00019474,2]
[391537043,1760634631903,-151.0,0.00019474,2]
[391537045,1760634631914,-151.0,0.00019474,2]
[391537047,1760634631923,-151.0,0.00019474,2]
[391537049,1760634631933,-151.0,0.00019474,2]
[391537051,1760634631943,-151.0,0.00019474,2]
[391537053,1760634631955,-151.0,0.00019474,2]
[391537054,1760634631964,-151.0,0.00019474,2]
[391537055,1760634631974,-151.0,0.00019474,2]
[391537056,1760634631983,-151.0,0.00019474,2]
[391537057,1760634631994,-200.0,0.00019474,2]
[391537058,1760634632005,-151.0,0.00019474,2]
[391537059,1760634632015,-500.0,0.00019474,2]
[391537060,1760634632025,-151.0,0.00019474,2]
[391537061,1760634632035,-151.0,0.00019474,2]
[391537062,1760634632045,-500.0,0.00019474,2]
[391537063,1760634632057,-151.0,0.00019474,2]
[391537064,1760634632071,-151.0,0.00019474,2]
[391537065,1760634632081,-500.0,0.00019474,2]
[391537066,1760634632091,-151.0,0.00019474,2]
[391537067,1760634632101,-151.0,0.00019474,2]
[391537068,1760634632112,-404.22581024,0.00019474,2]
[391537069,1760634632122,-151.0,0.00019474,2]
[391537070,1760634632133,-151.0,0.00019474,2]
[391537071,1760634632143,-151.0,0.00019474,2]
[391537072,1760634632153,-200.0,0.00019474,2]
[391537073,1760634632163,-151.0,0.00019474,2]
[391537074,1760634632173,-151.0,0.00019474,2]
[391537075,1760634632184,-151.0,0.00019474,2]
[391537076,1760634632198,-151.0,0.00019474,2]
[391537077,1760634632208,-151.0,0.00019474,2]
[391537078,1760634632219,-151.0,0.00019474,2]
[391537079,1760634632231,-151.0,0.00019474,2]
[391537080,1760634632242,-200.0,0.00019474,2]
[391537081,1760634632251,-151.0,0.00019474,2]
[391537082,1760634632261,-151.0,0.00019474,2]
[391537083,1760634632271,-151.0,0.00019474,2]
[391537084,1760634632282,-151.0,0.00019474,2]
[391537085,1760634632292,-151.0,0.00019474,2]
[391537086,1760634632302,-151.0,0.00019474,2]
[391537087,1760634632315,-151.0,0.00019474,2]
[391537088,1760634632325,-151.0,0.00019474,2]
[391537089,1760634632335,-151.0,0.00019474,2]
[391537090,1760634632345,-154.93545532,0.00019474,2]
[391537091,1760634632355,-223.26,0.00019474,2]
[391537092,1760634632365,-322.61070001,0.00019486,2]
[391537093,1760634632374,-151.0,0.00019486,2]
[391537094,1760634632384,-695.39793187,0.00019486,2]
[391537095,1760634632394,-1000.0,0.00019486,2]
[391537096,1760634632404,-1000.0,0.00019486,2]
[391537097,1760634632414,-1000.0,0.00019486,2]
[391537098,1760634632423,-1000.0,0.00019486,2]
[391537099,1760634632432,-250.0,0.00019486,2]
[391537100,1760634632443,-9552.16786547,0.00019486,2]
[391537101,1760634632452,-1000.0,0.00019486,2]
[391537102,1760634632462,-250.0,0.00019486,2]
[391537103,1760634632472,-1000.0,0.00019486,2]
[391537104,1760634632481,-250.0,0.00019486,2]
[391537105,1760634632491,-621.78829552,0.00019486,2]
[391537106,1760634632500,-250.0,0.00019486,2]
[391537107,1760634632510,-250.0,0.00019486,2]
[391537108,1760634632520,-250.0,0.00019486,2]
[391537109,1760634632530,-250.0,0.00019486,2]
[391537110,1760634632539,-250.0,0.00019486,2]
[391537111,1760634632549,-250.0,0.00019486,2]
[391537112,1760634632561,-250.0,0.00019486,2]
[391537113,1760634632570,-250.0,0.00019486,2]
[391537114,1760634632580,-250.0,0.00019486,2]
[391537115,1760634632590,-250.0,0.00019486,2]
[391537116,1760634632599,-250.0,0.00019486,2]
[391537117,1760634632609,-250.0,0.00019486,2]
[391537118,1760634632619,-156.587,0.00019486,2]
[391537119,1760634632628,-250.0,0.00019486,2]
[391537120,1760634632637,-250.0,0.00019486,2]
[391537121,1760634632647,-250.0,0.00019486,2]
[391537122,1760634632656,-162.380719,0.00019486,2]
[391537123,1760634632666,-250.0,0.00019486,2]
[391537124,1760634632675,-250.0,0.00019486,2]
[391537125,1760634632684,-178.35358718,0.00019486,2]
[391537126,1760634632694,-250.0,0.00019486,2]
[391537127,1760634632704,-250.0,0.00019486,2]
[391537128,1760634632713,-250.0,0.00019486,2]
[391537129,1760634632722,-250.0,0.00019486,2]
[391537130,1760634632732,-250.0,0.00019486,2]
[391537131,1760634632742,-250.0,0.00019486,2]
[391537132,1760634632751,-250.0,0.00019486,2]
[391537133,1760634632762,-250.0,0.00019486,2]
[391537134,1760634632772,-250.0,0.00019486,2]
[391537135,1760634632782,-250.0,0.00019486,2]
[391537136,1760634632791,-250.0,0.00019486,2]
[391537137,1760634632801,-250.0,0.00019486,2]
[391537138,1760634632814,-250.0,0.00019486,2]
[391537139,1760634632824,-277.35679052,0.00019486,2]
[391537140,1760634632834,-151.0,0.00019486,2]
[391537141,1760634632844,-250.0,0.00019486,2]
[391537142,1760634632854,-250.0,0.00019486,2]
[391537143,1760634632865,-250.0,0.00019486,2]
[391537144,1760634632874,-250.0,0.00019486,2]
[391537145,1760634632884,-250.0,0.00019486,2]
[391537146,1760634632894,-250.0,0.00019486,2]
[391537147,1760634632904,-250.0,0.00019486,2]
[391537148,1760634632914,-1000.0,0.00019486,2]
[391537149,1760634632924,-250.0,0.00019486,2]
[391537150,1760634632934,-1000.0,0.00019486,2]
[391537151,1760634632944,-250.0,0.00019486,2]
[391537152,1760634632954,-1000.0,0.00019486,2]
[391537153,1760634632964,-250.0,0.00019486,2]
[391537154,1760634632974,-1000.0,0.00019486,2]
[391537155,1760634632984,-250.0,0.00019486,2]
[391537156,1760634632995,-250.0,0.00019486,2]
[391537157,1760634633005,-1000.0,0.00019486,2]
[391537158,1760634633015,-250.0,0.00019486,2]
[391537159,1760634633026,-1000.0,0.00019486,2]
[391537160,1760634633036,-250.0,0.00019486,2]
[391537161,1760634633046,-1000.0,0.00019486,2]
[391537162,1760634633056,-250.0,0.00019486,2]
[391537163,1760634633073,-1000.0,0.00019486,2]
[391537164,1760634633084,-1000.0,0.00019486,2]
[391537165,1760634633094,-1000.0,0.00019486,2]
[391537166,1760634633105,-1000.0,0.00019486,2]
[391537167,1760634633114,-500.0,0.00019512,2]
[391537168,1760634633124,-9905.5980765,0.00019541,2]
[391537169,1760634633134,-250.0,0.00019544,2]
[391537170,1760634633145,-737.31,0.00019567,2]
[391537171,1760634633154,-562.69787644,0.00019584,2]
[391537172,1760634633164,-10272.10520533,0.00019596,2]
[391537173,1760634633174,-10652.17309792,0.00019651,2]
[391537174,1760634633184,-9710.22598681,0.00019676,2]
[391537175,1760634633193,-1000.0,0.00019684,2]
[391537176,1760634633207,-11046.30350255,0.00019706,2]
[391537177,1760634633217,-289.2,0.00019734,2]
[391537178,1760634633226,-11455.01673214,0.00019761,2]
[391537179,1760634633237,-684.80191791,0.00019776,2]
[391537180,1760634633247,-11878.85235123,0.00019816,2]
[391537181,1760634633257,-4030.0,0.00019845,2]
[391537182,1760634633266,-850.0,0.00019845,2]
[391537183,1760634633278,-556.0,0.00019845,2]
[391537184,1760634633288,-3941.73436985,0.00019871,2]
[391537185,1760634633298,-859.90015002,0.00020702,2]
[391537186,1760634633307,-216.0,0.00020767,2]
[391537187,1760634633320,-9710.22598673,0.00020779,2]
[391537188,1760634633329,-216.0,0.00020799,2]
[391537189,1760634633339,-216.0,0.00020808,2]
[391537190,1760634633348,-216.0,0.00020828,2]
[391537191,1760634633358,-216.0,0.00020895,2]
[391537192,1760634633368,-173.92,0.00020941,2]
[391537193,1760634633378,-1542.73,0.00020951,2]
[391537194,1760634633388,-28544.04,0.00020951,2]
[391537195,1760634633398,-216.0,0.00020951,2]
[391537196,1760634633407,-216.0,0.00021009,2]
[391537197,1760634633416,-3406.0,0.00021097,2]
[391537198,1760634633425,-749.0,0.00021097,2]
[391537199,1760634633435,-1267.0,0.00021097,2]
[391537200,1760634633444,-2049.0,0.00021097,2]
[391537201,1760634633453,-604.0,0.00021097,2]
[391537202,1760634633463,-1309.055,0.00021097,2]
[391537203,1760634633472,-571.0,0.00021097,2]
[391537204,1760634633482,-1546.0,0.00021097,2]
[391537205,1760634633491,-816.0,0.00021097,2]
[391537206,1760634633501,-1183.0,0.00021097,2]
[391537207,1760634633510,-2546.0,0.00021097,2]
[391537208,1760634633520,-901.0,0.00021097,2]
[391537209,1760634633530,-216.0,0.00021232,2]
[391537210,1760634633539,-4000.0,0.00021258,2]
[391537211,1760634633549,-216.0,0.00021286,2]
[391537212,1760634633559,-216.0,0.00021311,2]
[391537213,1760634633570,-216.0,0.00021391,2]
[391537214,1760634633579,-216.0,0.00021554,2]
[391537215,1760634633589,-216.0,0.00021609,2]
[391537216,1760634633598,-216.0,0.00021613,2]
[391537217,1760634633608,-1035.71762044,0.00021627,2]
[391537218,1760634633618,-1000.0,0.00021657,2]
[391537219,1760634633628,-2500.0,0.00021657,2]
[391537220,1760634633638,-216.0,0.0002173,2]
[391537221,1760634633647,-216.0,0.0002176,2]
[391537222,1760634633657,-621.72,0.00021807,2]
[391537223,1760634633666,-173.92,0.00021807,2]
[391537224,1760634633676,-2000.0,0.00021816,2]
[391537225,1760634633685,-18378.9647,0.00021817,2]
[391537226,1760634633695,-1000.0,0.00021817,2]
[391537227,1760634633705,-9710.22598673,0.00021881,2]
[391537228,1760634633715,-5000.0,0.00021918,2]
[391537229,1760634633724,-600.0,0.00021918,2]
[391537230,1760634633734,-1270.86,0.00022,2]
[391537231,1760634633743,-216.0,0.00022037,2]
[391537232,1760634633754,-216.0,0.00022089,2]
[391537233,1760634633763,-11058.3894,0.0002209,2]
[391537234,1760634633772,-216.0,0.00022109,2]
[391537235,1760634633782,-216.0,0.00022126,2]
[391537236,1760634633791,-1000.0,0.00022144,2]
[391537237,1760634633800,-1000.0,0.000222,2]
[391537238,1760634633812,-216.0,0.00022236,2]
[391537239,1760634633822,-250.0,0.00022249,7]
[391537240,1760634633831,-216.0,0.00022265,2]
[391537241,1760634633841,-216.0,0.00022305,2]
[391537242,1760634633851,-216.0,0.00022355,2]
[391537243,1760634633861,-600.0,0.00022466,2]
[391537244,1760634633871,-216.0,0.00022519,2]
[391537245,1760634633880,-1212.13547201,0.00022552,2]
[391537246,1760634633890,-1729.127,0.00022759,2]
[391537247,1760634633899,-177.82,0.00022759,2]
[391537248,1760634633909,-4030.0,0.00022845,2]
[391537249,1760634633919,-556.0,0.00022845,2]
[391537250,1760634633928,-9710.22598673,0.00022984,2]
[391537251,1760634633939,-173.92,0.0002299,2]
[391537252,1760634633948,-1034.27035522,0.00023,2]
[391537253,1760634634903,-5699.14859926,0.00023,2]
[391537254,1760634634915,-1484.21981681,0.00023,2]
[391537255,1760634634928,-6213.87025821,0.00023,2]
[391537256,1760634634939,-5041.76615854,0.00023,2]
[391537257,1760634634951,-2106.39218547,0.00023,2]
[391537258,1760634634962,-49625.33262649,0.00023,2]
[391537259,1760634634973,-600.0,0.00023014,2]
[391537260,1760634634982,-1270.86,0.0002309,2]
[391537261,1760634634992,-8449.37878851,0.00023112,2]
[391537262,1760634635001,-500.0,0.00023212,2]
[391537263,1760634635011,-200.0,0.00023212,2]
[391537264,1760634635020,-1389.06892968,0.00023478,2]
[391537265,1760634635030,-600.0,0.00023562,2]
[391537266,1760634635039,-500.0,0.00023599,2]
[391537267,1760634635049,-274.89763035,0.00023599,2]
[391537268,1760634635060,-5512.0,0.000236,3]
[391537269,1760634635072,-164.58780627,0.00023997,2]
[391537270,1760634635082,-299.99999999,0.00024,2]
[391537271,1760634635091,-1248.07666082,0.00024055,2]
[391537272,1760634635101,-9710.22598673,0.00024087,2]
[391537273,1760634635110,-1181.0,0.00024097,2]
[391537274,1760634635119,-2546.0,0.00024097,2]
[391537275,1760634635129,-5512.0,0.000241,5]
[391537276,1760634635139,-600.0,0.0002411,2]
[391537277,1760634635149,-1270.86,0.00024179,2]
[391537278,1760634635158,-1765.0,0.000242,2]
[391537279,1760634635167,-1566.4544173,0.00024403,2]
[391537280,1760634635178,-3314.88705953,0.00024428,2]
[391537281,1760634635188,-1000.0,0.00024604,2]
[391537282,1760634635200,-1000.0,0.00024658,2]
[391537283,1760634635211,-600.0,0.00024658,2]
[391537284,1760634635220,-5000.0,0.0002476,2]
[391537285,1760634635230,-150.34884907,0.00024768,2]
[391537286,1760634635240,-150.0,0.00024768,2]
[391537287,1760634635250,-500.0,0.00024768,2]
[391537288,1760634635259,-150.0,0.00024768,2]
[391537289,1760634635269,-150.0,0.00024768,2]
[391537290,1760634635279,-150.0,0.00024768,2]
[391537291,1760634635289,-150.0,0.00024768,2]
[391537292,1760634635298,-150.0,0.00024768,2]
[391537293,1760634635309,-150.0,0.00024768,2]
[391537294,1760634635323,-150.0,0.00024768,2]
[391537295,1760634635333,-162.65,0.00024789,2]
[391537296,1760634635342,-621.72,0.0002479,2]
[391537297,1760634635351,-19671.60835113,0.00024798,2]
[391537298,1760634635363,-7132.82,0.00024798,2]
[391537299,1760634635375,-4942.3348208,0.00024798,2]
[391537303,1760634637437,-2629.97761171,0.00019845,2]
[391537304,1760634637490,-718.2,0.00019845,2]
[391537305,1760634637502,-3095.82238829,0.00019845,2]
[391537306,1760634637512,-2795.923,0.00022845,2]
[391537307,1760634637522,-151.0,0.00023087,7]
[391537308,1760634637531,-173.92,0.0002359,2]
[391537309,1760634637540,-8449.37878847,0.00023833,2]
[391537310,1760634637550,-8449.37878847,0.00024554,2]
[391537311,1760634637564,-151.0,0.00024795,7]
[391537312,1760634637573,-151.0,0.00024795,7]
[391537313,1760634637583,-30595.12204986,0.00024798,2]
[391537314,1760634637594,-121009.54999953,0.00024798,2]
[391537489,1760634639340,-159.106879,0.0002479,2]
[391537491,1760634639350,-109145.6968247,0.00024798,2]
[391537493,1760634639362,-4033.6906338,0.00024798,2]
[391537497,1760634639390,-44108.24708677,0.00024798,2]
[391537500,1760634639402,-305.0000025,0.00024798,2]
[391537502,1760634639414,-7092.86162411,0.00024798,2]
[391537504,1760634639425,-2197.08457004,0.00024798,2]
[391537507,1760634639446,-16531.51632296,0.00024798,2]
[391537510,1760634639458,-13008.90256472,0.00024798,2]
[391537515,1760634639503,-395.472,0.00024798,2]
[391537552,1760634639847,-2988.93535884,0.00024798,2]
[391537554,1760634639859,-2090.40897658,0.00024798,2]
[391537557,1760634639875,-819.86034757,0.00024798,2]
[391537559,1760634639891,-2749.91063337,0.00024798,2]
[391537562,1760634639903,-900.0,0.00024798,2]
[391537616,1760634642411,-544.2950181,0.00022,2]
[391537617,1760634642424,-302.9449819,0.00022,2]
[391537618,1760634642435,-847.24,0.0002309,2]
[391537619,1760634642445,-847.24,0.00024179,2]
[391537621,1760634642455,-36775.56959444,0.00024798,2]
[391537623,1760634642467,-22894.93564997,0.00024798,2]
[391537625,1760634642480,-608.41110405,0.00024798,2]
[391537626,1760634642491,-544.15,0.00024798,2]
[391537627,1760634642503,-415942.72727358,0.00024798,2]
[391537628,1760634642513,-1000.0,0.00024799,2]
[391537629,1760634642523,-1000.0,0.00024799,2]
[391537630,1760634642533,-1000.0,0.00024799,2]
[391537631,1760634642545,-1000.0,0.00024799,2]
[391537632,1760634642555,-1000.0,0.00024799,2]
[391537633,1760634642564,-1000.0,0.00024799,2]
[391537634,1760634642576,-1000.0,0.00024799,2]
[391537635,1760634642586,-1000.0,0.00024799,2]
[391537636,1760634642596,-1000.0,0.00024799,2]
[391537637,1760634642606,-575.24337321,0.00024799,2]
[391537638,1760634642616,-112111.46548,0.000248,3]
[391537639,1760634642626,-500.0,0.00024823,2]
[391537640,1760634642636,-150.0,0.00024823,2]
[391537641,1760634642648,-150.0,0.00024823,2]
[391537642,1760634642658,-150.0,0.00024823,2]
[391537643,1760634642668,-28027.86637,0.0002486,3]
[391537644,1760634642679,-14121.82497121,0.0002487,3]
[391537645,1760634642693,-490.54813621,0.0002487,3]
[391537646,1760634642705,-2069.92364675,0.0002487,3]
[391537647,1760634642717,-1307.19902,0.0002487,3]
[391537648,1760634642729,-761.8464111,0.0002487,3]
[391537649,1760634642740,-553.85124148,0.0002487,3]
[391537650,1760634642752,-4672.16489734,0.0002487,3]
[391537651,1760634642764,-389.11952585,0.0002487,3]
[391537652,1760634642783,-2113.4070758,0.0002487,3]
[391537653,1760634642794,-835.695679,0.0002487,3]
[391537656,1760634642806,-712.28576526,0.0002487,3]
[391537657,1760634642817,-1267.3485566,0.0002487,3]